bitfinex-derivatives/quotes_SOLF0:USTF0_20251002
["timestamp","ask_amount","ask_price","bid_price","bid_amount"]
[1759414291539,7.56,225.72,225.64,7.71]
[1759414291740,9.28194861,225.72,225.64,7.71]
[1759414291942,9.28194861,225.72,225.63,1.72194861]
[1759414292142,7.56,225.69,225.59,13.48570435]
[1759414292342,11.5454,225.69,225.6,5.70864861]
[1759414292640,11.5454,225.69,225.6,1.72194861]
[1759414293232,1.72194861,225.67,225.57,9.43194861]
[1759414293744,1.72194861,225.68,225.57,7.71]
[1759414294041,5.70734861,225.68,225.59,1.72194861]
[1759414294542,5.70734861,225.68,225.6,3.9867]
[1759414294935,3.9857,225.67,225.59,1.72194861]
[1759414295531,3.9857,225.67,225.58,1.72194861]
[1759414296141,11.5452,225.69,225.6,1.72194861]
[1759414297043,5.70754861,225.68,225.6,5.70864861]
[1759414297341,5.70754861,225.68,225.6,3.9867]
[1759414297843,1.72194861,225.66,225.57,7.71]
[1759414298039,9.28194861,225.67,225.58,1.72194861]
[1759414298742,3.9859,225.66,225.58,1.72194861]
[1759414298942,3.9859,225.66,225.57,7.71]
[1759414298943,1.72194861,225.65,225.57,7.71]
[1759414300040,13.26754861,225.67,225.57,9.43194861]
[1759414300339,9.28194861,225.67,225.57,9.43194861]
[1759414301245,7.56,225.64,225.56,1.72194861]
[1759414301443,7.56,225.64,225.52,7.71]
[1759414301643,11.5463,225.64,225.56,7.71]
[1759414301842,110.66,225.68,225.53,1.72194861]
[1759414301843,7.56,225.62,225.53,1.72194861]
[1759414302043,1.72194861,225.61,225.51,7.71]
[1759414302339,1.72194861,225.6,225.51,7.71]
[1759414302539,1.72194861,225.6,225.53,3.9881]
[1759414302947,1.72194861,225.6,225.51,11.6984]
[1759414303241,1.72194861,225.6,225.51,7.71]
[1759414303447,7.56,225.59,225.51,7.71]
[1759414303648,1.72194861,225.56,225.45,110.66]
[1759414303847,7.56,225.58,225.48,1.72194861]
[1759414304045,7.56,225.58,225.49,3.9886]
[1759414305137,1.72194861,225.55,225.47,7.71]
[1759414305845,3.9879,225.55,225.47,7.71]
[1759414306050,5.70984861,225.55,225.47,7.71]
[1759414306349,3.988,225.54,225.47,7.71]
[1759414306743,3.988,225.54,225.45,1.72194861]
[1759414306943,3.988,225.54,225.44,3.9896]
[1759414306944,9.28194861,225.53,225.44,3.9896]
[1759414307347,7.56,225.53,225.44,1.72194861]
[1759414307547,7.56,225.53,225.43,7.71]
[1759414307749,1.72194861,225.55,225.46,7.71]
[1759414307943,7.56,225.54,225.46,7.71]
[1759414310550,11.548,225.54,225.46,7.71]
[1759414310854,7.56,225.54,225.46,11.6991]
[1759414311451,7.56,225.54,225.46,7.71]
[1759414312346,7.56,225.54,225.4,13.30168495]
[1759414312347,1.72194861,225.52,225.43,1.72194861]
[1759414312850,5.71034861,225.52,225.44,3.9896]
[1759414313245,1.72194861,225.52,225.44,3.9896]
[1759414313446,1.72194861,225.53,225.45,7.71]
[1759414313642,5.71014861,225.53,225.45,7.71]
[1759414314459,3.9884,225.52,225.45,7.71]
[1759414315453,3.9884,225.52,225.39,13.25173152]
[1759414315454,3.9888,225.49,225.41,1.72194861]
[1759414315651,7.68,225.48,225.39,7.42]
[1759414315956,7.68,225.48,225.39,9.14194861]
[1759414316549,11.6691,225.48,225.39,13.13244861]
[1759414316857,1.72194861,225.47,225.39,11.4105]
[1759414317049,112.40194861,225.47,225.39,11.4105]
[1759414317355,110.68,225.47,225.39,11.4105]
[1759414317544,120.08194861,225.48,225.39,13.13244861]
[1759414317749,3.20243547,225.47,225.39,13.13244861]
[1759414318255,3.20243547,225.46,225.37,9.14194861]
[1759414318455,118.36,225.47,225.39,1.72194861]
[1759414318751,3.20220924,225.46,225.39,1.72194861]
[1759414319051,118.36,225.47,225.39,1.72194861]
[1759414319249,118.36,225.47,225.31,71.3680523]
[1759414319250,1.72194861,225.42,225.31,7.42]
[1759414319451,36.92,225.41,225.35,7.42]
[1759414319755,36.92,225.42,225.35,7.42]
[1759414319957,9.40194861,225.43,225.35,7.42]
[1759414319958,3.2012935,225.41,225.35,7.42]
[1759414320249,9.40194861,225.43,225.36,1.72194861]
[1759414320250,3.2012935,225.4,225.36,1.72194861]
[1759414320453,3.2012935,225.42,225.39,7.42]
[1759414320655,10.8812935,225.44,225.39,7.42]
[1759414320853,3.2012935,225.43,225.39,7.42]
[1759414321054,3.20356007,225.42,225.35,1.72194861]
[1759414321255,7.68,225.45,225.36,7.42]
[1759414321453,3.20612382,225.44,225.36,7.42]
[1759414321654,7.68,225.5,225.42,7.42]
[1759414321855,3.20523637,225.49,225.45,7.42]
[1759414322151,3.20492836,225.48,225.41,7.42]
[1759414322355,3.20674505,225.47,225.41,9.14194861]
[1759414322557,7.68,225.52,225.42,1.72194861]
[1759414322753,3.20674328,225.51,225.44,7.42]
[1759414322953,3.20674328,225.5,225.44,7.42]
[1759414323154,3.20674328,225.49,225.46,7.42]
[1759414323354,7.68,225.52,225.46,7.42]
[1759414323658,62.0068,225.65,225.45,1.72194861]
[1759414323659,3.2071324,225.51,225.45,1.72194861]
[1759414323955,3.20699488,225.5,225.46,7.42]
[1759414324256,7.68,225.54,225.46,7.42]
[1759414324449,3.20817471,225.53,225.46,7.42]
[1759414324654,3.20817471,225.52,225.46,11.4093]
[1759414324850,1.72194861,225.57,225.48,1.72194861]
[1759414325056,3.20794451,225.56,225.49,7.42]
[1759414325255,3.20794451,225.55,225.49,7.42]
[1759414325456,3.20794451,225.54,225.49,7.42]
[1759414325653,3.20794451,225.53,225.48,1.72194861]
[1759414325858,3.20794451,225.52,225.48,9.14194861]
[1759414326064,7.68,225.53,225.48,7.42]
[1759414326362,3.20898049,225.52,225.46,9.14194861]
[1759414326557,62.0579,225.46,225.32,7.42]
[1759414326758,3.9904,225.4,225.32,9.14194861]
[1759414326959,7.68,225.43,225.32,9.14194861]
[1759414326960,1.72194861,225.41,225.32,9.14194861]
[1759414327160,3.21069691,225.4,225.32,9.14194861]
[1759414327355,3.9911,225.36,225.27,1.72194861]
[1759414327554,3.9911,225.36,225.28,7.42]
[1759414327763,3.21012046,225.35,225.28,7.42]
[1759414328065,110.68,225.38,225.3,1.72194861]
[1759414328259,110.68,225.38,225.31,7.42]
[1759414328659,3.9904,225.4,225.31,11.412]
[1759414328862,3.21018663,225.39,225.31,11.412]
[1759414329060,3.21018663,225.38,225.31,11.412]
[1759414329371,3.9899,225.43,225.32,3.9916]
[1759414329566,113.90991517,225.42,225.32,3.9916]
[1759414329763,3.20991517,225.41,225.32,3.9916]
[1759414329970,3.20991517,225.4,225.31,7.42]
[1759414330166,3.20991517,225.39,225.31,7.42]
[1759414330361,3.20991517,225.38,225.31,7.42]
[1759414330556,7.68,225.4,225.26,6.69762602]
[1759414330766,3.20989235,225.39,225.26,11.4127]
[1759414330963,3.20989235,225.38,225.26,11.4127]
[1759414331164,3.20989235,225.37,225.26,7.42]
[1759414331361,3.20989235,225.36,225.26,7.42]
[1759414331558,61.46,225.37,225.26,7.42]
[1759414331764,7.68,225.4,225.26,7.42]
[1759414332065,3.9908,225.38,225.29,3.9923]
[1759414332565,3.9915,225.34,225.26,7.42]
[1759414332762,3.20900246,225.36,225.26,7.42]
[1759414332963,3.20900246,225.35,225.26,7.42]
[1759414333159,7.68,225.37,225.26,7.42]
[1759414333359,3.20665278,225.36,225.26,7.42]
[1759414333563,7.19795278,225.35,225.26,7.42]
[1759414333861,3.9913,225.35,225.26,7.42]
[1759414334167,3.9913,225.35,225.23,2.70492602]
[1759414334168,7.68,225.37,225.28,7.42]
[1759414334370,10.88701154,225.37,225.28,7.42]
[1759414334670,7.68,225.37,225.28,7.42]
[1759414335073,3.2082558,225.36,225.28,7.42]
[1759414335262,7.68,225.37,225.28,7.42]
[1759414335461,7.68,225.42,225.28,7.42]
[1759414335664,110.72,225.4,225.28,7.42]
[1759414335863,3.20894378,225.39,225.28,7.42]
[1759414336063,10.88894378,225.38,225.28,7.42]
[1759414336269,3.20894378,225.37,225.28,7.42]
[1759414336470,3.20894378,225.36,225.28,7.42]
[1759414336673,10.88894378,225.35,225.23,7.42]
[1759414336875,3.9917,225.33,225.23,11.4134]
[1759414337570,11.672,225.31,225.23,7.42]
[1759414337775,7.68,225.31,225.19,41.96]
[1759414338072,3.20854199,225.3,225.18,7.42]
[1759414338467,3.9927,225.27,225.18,7.42]
[1759414338665,7.68,225.27,225.18,7.42]
[1759414338974,3.993,225.26,225.18,7.42]
[1759414339574,3.20726251,225.26,225.14,2.70492602]
[1759414339772,3.20726251,225.26,225.19,7.42]
[1759414339967,2.70492602,225.34,225.19,7.42]
[1759414339968,91.18,225.31,225.19,7.42]
[1759414340173,10.88766012,225.3,225.19,7.42]
[1759414340369,91.18,225.31,225.15,3.9946]
[1759414340370,7.68,225.28,225.15,3.9946]
[1759414340565,3.993,225.25,225.15,3.9946]
[1759414341174,47.54,225.26,225.17,3.9944]
[1759414341574,66.62,225.3,225.21,3.9937]
[1759414341768,3.20741959,225.29,225.21,3.9937]
[1759414342173,3.20741959,225.31,225.23,3.9934]
[1759414342374,3.9918,225.32,225.23,3.9934]
[1759414342375,3.20741959,225.3,225.23,3.9934]
[1759414342570,3.20741959,225.31,225.23,3.9934]
[1759414342770,3.20741959,225.33,225.23,7.42]
[1759414342981,3.20741959,225.32,225.24,3.993]
[1759414343170,3.20741959,225.33,225.23,7.42]
[1759414343367,3.20741959,225.32,225.23,7.42]
[1759414343571,3.20741959,225.33,225.23,7.42]
[1759414343775,3.20741959,225.32,225.23,7.42]
[1759414343976,3.20741959,225.33,225.24,3.9932]
[1759414344278,3.20741959,225.32,225.23,7.42]
[1759414344577,3.20741959,225.33,225.26,3.9928]
[1759414344876,7.68,225.34,225.26,3.9928]
[1759414344877,3.20741959,225.32,225.26,3.9928]
[1759414345077,3.20741959,225.33,225.26,3.9928]
[1759414345287,4.29553081,225.36,225.26,11.6128]
[1759414345481,3.17208907,225.35,225.28,3.9924]
[1759414345974,3.17208907,225.35,225.26,7.62]
[1759414346478,3.17208907,225.35,225.29,3.9923]
[1759414346674,4.29553081,225.36,225.27,7.62]
[1759414347071,3.17347536,225.41,225.27,7.62]
[1759414347377,3.17347536,225.4,225.32,7.62]
[1759414347566,3.17347536,225.39,225.32,7.62]
[1759414347770,7.16367536,225.42,225.32,7.62]
[1759414347972,3.17347536,225.41,225.32,7.62]
[1759414348178,3.17347536,225.4,225.32,7.62]
[1759414348375,3.17347536,225.39,225.32,11.6116]
[1759414348572,3.17347536,225.42,225.32,7.62]
[1759414348773,3.17347536,225.41,225.32,7.62]
[1759414348978,3.17347536,225.4,225.32,7.62]
[1759414349175,3.17347536,225.39,225.32,7.62]
[1759414349377,7.42,225.41,225.27,11.6125]
[1759414349680,3.17547371,225.4,225.27,11.6125]
[1759414349878,3.17547371,225.39,225.27,11.6125]
[1759414350178,3.17547371,225.38,225.27,11.6125]
[1759414350371,3.17547371,225.37,225.27,11.6125]
[1759414350567,3.9907,225.38,225.27,11.6125]
[1759414350771,3.17547371,225.37,225.27,7.62]
[1759414351174,3.9911,225.36,225.27,7.62]
[1759414351378,7.42,225.37,225.27,11.6126]
[1759414351781,7.42,225.37,225.29,3.9922]
[1759414351975,10.59643702,225.37,225.29,3.9922]
[1759414352174,7.42,225.37,225.29,3.9922]
[1759414352378,7.42,225.41,225.29,3.9922]
[1759414352577,3.1757177,225.4,225.29,3.9922]
[1759414352784,3.1757177,225.39,225.29,3.9922]
[1759414353079,3.1757177,225.38,225.27,11.6127]
[1759414353283,3.1757177,225.37,225.27,7.62]
[1759414353480,3.1757177,225.36,225.27,7.62]
[1759414353777,3.1757177,225.37,225.27,7.62]
[1759414354079,3.1757177,225.36,225.27,7.62]
[1759414354280,3.1757177,225.37,225.27,7.62]
[1759414354484,3.1757177,225.36,225.27,7.62]
[1759414354674,3.1757177,225.37,225.27,7.62]
[1759414354874,3.1757177,225.36,225.27,7.62]
[1759414355073,7.1666177,225.37,225.27,7.62]
[1759414355276,3.1757177,225.36,225.27,7.62]
[1759414355676,3.1757177,225.37,225.27,7.62]
[1759414355877,3.1757177,225.36,225.27,7.62]
[1759414356075,3.1757177,225.37,225.27,7.62]
[1759414356280,3.1757177,225.36,225.27,7.62]
[1759414356483,3.1757177,225.36,225.21,90.04]
[1759414356484,7.42,225.34,225.22,7.62]
[1759414356683,3.1757177,225.33,225.22,7.62]
[1759414356874,3.1757177,225.33,225.24,3.9931]
[1759414357075,7.42,225.34,225.24,3.9931]
[1759414357278,10.5957177,225.34,225.24,3.9931]
[1759414357481,7.42,225.34,225.25,3.9929]
[1759414357672,10.59927682,225.34,225.25,3.9929]
[1759414357876,10.59927682,225.34,225.21,90.04]
[1759414358082,3.9909,225.37,225.29,7.62]
[1759414358482,7.17045707,225.37,225.29,7.62]
[1759414358782,3.9909,225.37,225.29,7.62]
[1759414358978,7.17075707,225.36,225.29,7.62]
[1759414359278,10.59955707,225.35,225.24,7.62]
[1759414359480,3.18157929,225.34,225.24,7.62]
[1759414360377,7.42,225.33,225.21,90.04]
[1759414360585,7.42,225.31,225.21,90.04]
[1759414360779,3.9928,225.27,225.2,7.62]
[1759414361687,3.993,225.26,225.2,7.62]
[1759414363474,3.9925,225.28,225.2,7.62]
[1759414363678,3.18176754,225.29,225.2,7.62]
[1759414363881,114.7523,225.3,225.2,7.62]
[1759414364687,3.9924,225.29,225.21,3.9937]
[1759414365283,11.412,225.31,225.2,7.62]
[1759414365983,7.42,225.29,225.2,7.62]
[1759414366682,62.1071,225.28,225.16,2.7069826]
[1759414366888,10.60187088,225.27,225.16,2.7069826]
[1759414367188,10.60187088,225.27,225.15,7.62]
[1759414367788,7.42,225.24,225.15,7.62]
[1759414368584,3.9936,225.22,225.15,7.62]
[1759414368988,7.42,225.24,225.15,7.62]
[1759414369585,3.9934,225.23,225.15,7.62]
[1759414369784,7.42,225.24,225.15,7.62]
[1759414370589,14.59572076,225.24,225.15,7.62]
[1759414370782,11.4133,225.24,225.15,7.62]
[1759414371179,3.18727255,225.23,225.15,7.62]
[1759414371384,11.4133,225.24,225.15,7.62]
[1759414371581,3.18756264,225.23,225.15,7.62]
[1759414371786,3.18756264,225.22,225.15,7.62]
[1759414371988,3.18756264,225.23,225.15,7.62]
[1759414372290,11.4133,225.24,225.15,7.62]
[1759414372487,3.1868799,225.23,225.15,7.62]
[1759414372690,3.9936,225.22,225.15,7.62]
[1759414373784,3.994,225.2,225.12,5.95265368]
[1759414373985,3.18638802,225.2,225.12,5.95265368]
[1759414374185,3.18638802,225.2,225.11,7.62]
[1759414374885,3.9948,225.15,225.04,11.9266]
[1759414375188,3.18638802,225.14,225.04,7.93]
[1759414375690,3.9948,225.15,225.04,7.93]
[1759414375886,3.9948,225.15,225.06,7.93]
[1759414376090,10.3869826,225.19,225.06,7.93]
[1759414376091,3.18638802,225.16,225.06,7.93]
[1759414376291,3.18638802,225.17,225.06,7.93]
[1759414376585,3.18638802,225.16,225.06,7.93]
[1759414376791,3.18638802,225.18,225.06,7.93]
[1759414377090,3.18638802,225.17,225.06,3.9964]
[1759414377288,3.18638802,225.18,225.07,7.93]
[1759414377687,5.89337062,225.19,225.07,7.93]
[1759414377889,3.18638802,225.18,225.07,7.93]
[1759414378089,3.9946,225.16,225.07,7.93]
[1759414378391,3.18638802,225.19,225.07,7.93]
[1759414379289,10.86638802,225.2,225.07,7.93]
[1759414379886,7.68,225.2,225.07,7.93]
[1759414380082,10.86638802,225.2,225.07,7.93]
[1759414380289,7.68,225.2,225.07,7.93]
[1759414380489,3.9937,225.22,225.12,7.93]
[1759414380793,3.18463169,225.23,225.12,7.93]
[1759414380993,3.18463169,225.23,225.13,7.93]
[1759414381192,7.68,225.24,225.13,7.93]
[1759414381493,3.18549057,225.28,225.2,7.93]
[1759414381791,7.68,225.34,225.2,7.93]
[1759414381987,3.18580425,225.33,225.2,7.93]
[1759414382290,3.18580425,225.33,225.21,7.93]
[1759414382590,10.86580425,225.34,225.24,7.93]
[1759414382985,10.86580425,225.34,225.25,3.993]
[1759414383183,3.18580425,225.34,225.26,7.93]
[1759414383383,26.02,225.35,225.26,7.93]
[1759414384183,7.68,225.3,225.2,7.93]
[1759414384393,10.86468956,225.3,225.2,7.93]
[1759414384588,62.0925,225.33,225.09,62.1585]
[1759414384589,7.68,225.24,225.09,62.1585]
[1759414384886,3.18416292,225.28,225.12,3.9953]
[1759414385082,3.9927,225.27,225.13,7.93]
[1759414385489,3.9931,225.25,225.15,3.9947]
[1759414385685,3.9931,225.25,225.13,7.93]
[1759414386697,3.9931,225.25,225.08,7.93]
[1759414386698,7.68,225.22,225.08,7.93]
[1759414387188,7.68,225.22,225.1,7.93]
[1759414387391,7.68,225.28,225.1,7.93]
[1759414387696,10.86357162,225.28,225.11,7.93]
[1759414388099,62.1095,225.27,225.11,11.9254]
[1759414388298,7.68,225.26,225.11,7.93]
[1759414388595,3.9934,225.23,225.11,7.93]
[1759414389591,3.9938,225.21,225.12,3.9953]
[1759414389789,7.68,225.22,225.11,7.93]
[1759414389996,3.9941,225.19,225.11,7.93]
[1759414390989,11.6737,225.22,225.11,7.93]
[1759414391192,7.68,225.22,225.11,7.93]
[1759414392089,3.9939,225.2,225.11,11.9255]
[1759414392293,7.68,225.22,225.11,11.9255]
[1759414393592,7.68,225.22,225.11,7.93]
[1759414393794,7.68,225.28,225.15,7.93]
[1759414393999,7.68,225.28,225.2,7.93]
[1759414394501,3.18689545,225.32,225.2,7.93]
[1759414394805,3.18689545,225.32,225.21,3.9937]
[1759414395192,3.18689545,225.32,225.22,3.9934]
[1759414395600,7.17889545,225.32,225.22,3.9934]
[1759414395904,3.992,225.32,225.22,3.9934]
[1759414397206,11.97699834,225.33,225.23,11.9232]
[1759414397401,11.97699834,225.33,225.23,7.93]
[1759414397600,7.68,225.38,225.23,70.0483]
[1759414397803,11.6709,225.38,225.26,7.93]
[1759414398098,3.18935637,225.37,225.26,7.93]
[1759414398302,7.68,225.36,225.26,7.93]
[1759414398506,11.6712,225.36,225.26,7.93]
[1759414398703,3.18935637,225.35,225.26,7.93]
[1759414399007,7.68,225.36,225.26,7.93]
[1759414399207,3.9907,225.39,225.26,7.93]
[1759414399405,3.18995071,225.38,225.26,7.93]
[1759414399706,3.18995071,225.38,225.3,7.93]
[1759414399906,3.18995071,225.4,225.3,7.93]
[1759414400106,10.86995071,225.41,225.3,7.93]
[1759414400304,3.18995071,225.4,225.3,7.93]
[1759414400500,7.68,225.41,225.3,7.93]
[1759414400698,7.68,225.41,225.31,3.9919]
[1759414400901,3.18995071,225.42,225.32,7.93]
[1759414401304,3.18995071,225.44,225.32,7.93]
[1759414401905,7.68,225.43,225.32,7.93]
[1759414402106,10.86995071,225.43,225.32,7.93]
[1759414402309,62.0631,225.44,225.25,7.93]
[1759414402310,7.68,225.39,225.25,7.93]
[1759414402609,10.86995071,225.39,225.25,7.93]
[1759414403205,3.9914,225.34,225.25,7.93]
[1759414403406,7.68,225.39,225.25,7.93]
[1759414403806,3.9909,225.37,225.26,3.9928]
[1759414404206,3.9909,225.37,225.27,7.85]
[1759414404913,7.68,225.39,225.28,3.9924]
[1759414405111,10.86901195,225.39,225.28,3.9924]
[1759414405314,7.68,225.39,225.28,3.9924]
[1759414405808,170.3631,225.44,225.29,7.85]
[1759414405809,7.13102044,225.41,225.29,7.85]
[1759414406007,3.14072044,225.43,225.29,7.85]
[1759414406205,7.75,225.44,225.3,7.85]
[1759414406812,11.7398,225.44,225.33,11.8416]
[1759414407008,3.14072044,225.43,225.33,7.85]
[1759414407309,3.9912,225.36,225.28,7.85]
[1759414407711,7.75,225.41,225.28,7.85]
[1759414407905,11.7403,225.41,225.28,7.85]
[1759414409210,3.9905,225.4,225.28,7.85]
[1759414410707,3.9905,225.4,225.32,7.85]
[1759414410909,3.99,225.43,225.32,7.85]
[1759414411109,7.75,225.43,225.32,7.85]
[1759414411310,7.75,225.43,225.28,3.9925]
[1759414411516,10.88443105,225.43,225.28,3.9925]
[1759414411708,3.9904,225.4,225.27,7.85]
[1759414412312,11.7404,225.4,225.27,7.85]
[1759414412711,11.7404,225.4,225.29,3.9921]
[1759414413314,3.9907,225.39,225.29,3.9921]
[1759414413708,7.75,225.5,225.37,7.85]
[1759414414408,7.75,225.47,225.37,7.85]
[1759414415010,11.7392,225.47,225.37,7.85]
[1759414415509,7.75,225.47,225.32,7.85]
[1759414415716,10.88186195,225.47,225.32,7.85]
[1759414415914,62.0572,225.46,225.31,67.42]
[1759414416117,3.9902,225.42,225.32,3.9916]
[1759414416311,3.9902,225.42,225.33,3.92]
[1759414417812,3.9897,225.45,225.33,3.92]
[1759414418111,62.0574,225.46,225.34,4.13]
[1759414418913,3.9904,225.41,225.34,4.13]
[1759414419315,62.0532,225.48,225.34,4.13]
[1759414419618,3.99,225.43,225.34,4.13]
[1759414420016,3.99,225.43,225.34,8.1214]
[1759414420217,3.9895,225.45,225.34,4.13]
[1759414420716,3.13000639,225.49,225.37,3.9909]
[1759414420917,3.13000639,225.51,225.37,3.9909]
[1759414421606,3.9894,225.46,225.37,3.9909]
[1759414421807,62.0488,225.49,225.35,3.9912]
[1759414422012,3.13000639,225.48,225.35,3.9912]
[1759414422320,3.9893,225.47,225.35,3.9912]
[1759414422711,3.13000639,225.5,225.35,3.9912]
[1759414422911,62.0463,225.5,225.35,3.9912]
[1759414423117,3.13000639,225.49,225.35,3.9912]
[1759414423417,3.13000639,225.49,225.36,3.991]
[1759414423713,3.9897,225.45,225.36,3.991]
[1759414424624,3.9892,225.47,225.37,3.9908]
[1759414424918,3.13000639,225.51,225.37,3.9908]
[1759414425109,3.13000639,225.5,225.34,4.13]
[1759414425314,3.13000639,225.51,225.35,62.0868]
[1759414425513,3.13000639,225.5,225.34,4.13]
[1759414425714,3.13000639,225.49,225.34,4.13]
[1759414425909,62.0457,225.5,225.34,4.13]
[1759414426112,3.13000639,225.49,225.34,4.13]
[1759414426418,3.9898,225.44,225.36,3.991]
[1759414427013,62.065,225.43,225.34,4.13]
[1759414427212,3.1366702,225.42,225.34,4.13]
[1759414427415,3.1366702,225.45,225.34,4.13]
[1759414427615,3.1366702,225.44,225.34,4.13]
[1759414427810,62.0662,225.43,225.34,4.13]
[1759414428014,65.2046702,225.42,225.34,4.13]
[1759414428211,3.1366702,225.41,225.34,4.13]
[1759414428613,3.9908,225.38,225.34,4.13]
[1759414432017,3.13749899,225.43,225.34,4.13]
[1759414432018,3.9904,225.4,225.34,4.13]
[1759414434617,62.0772,225.39,225.34,4.13]
[1759414434820,3.13749899,225.38,225.34,4.13]
[1759414435021,3.13749899,225.37,225.34,4.13]
[1759414435222,3.13749899,225.38,225.34,4.13]
[1759414435423,3.13749899,225.37,225.34,4.13]
[1759414435617,3.13749899,225.36,225.34,4.13]
[1759414435814,3.13749899,225.38,225.34,4.13]
[1759414436018,3.9912,225.36,225.34,4.13]
[1759414436217,7.12869899,225.36,225.34,4.13]
[1759414436421,3.9912,225.36,225.34,4.13]
[1759414436826,3.13749899,225.35,225.34,4.13]
[1759414437719,3.13749899,225.38,225.34,4.13]
[1759414437923,3.13749899,225.37,225.34,4.13]
[1759414438125,3.13749899,225.36,225.34,4.13]
[1759414438421,3.13749899,225.35,225.34,4.13]
[1759414438624,7.12849899,225.38,225.34,4.13]
[1759414438824,3.13749899,225.37,225.34,4.13]
[1759414439021,3.13749899,225.36,225.34,4.13]
[1759414439219,3.13749899,225.35,225.34,4.13]
[1759414439618,3.13749899,225.37,225.34,4.13]
[1759414439813,111.56,225.41,225.34,4.13]
[1759414440021,3.16140688,225.4,225.34,4.13]
[1759414440223,3.991,225.38,225.34,4.13]
[1759414440417,3.16140688,225.37,225.34,4.13]
[1759414440618,3.16140688,225.36,225.34,4.13]
[1759414440920,3.16267515,225.4,225.34,4.13]
[1759414441125,65.24067515,225.39,225.34,4.13]
[1759414441427,3.16267515,225.38,225.34,4.13]
[1759414441623,7.15367515,225.37,225.34,4.13]
[1759414441821,3.16267515,225.36,225.34,4.13]
[1759414442021,3.16267515,225.35,225.34,4.13]
[1759414442424,4.90035904,225.49,225.35,62.0875]
[1759414442625,4.90035904,225.52,225.36,62.0838]
[1759414442836,3.9885,225.52,225.41,1.73168716]
[1759414443026,6.6320462,225.53,225.42,3.9901]
[1759414443327,1.73168716,225.53,225.42,3.9901]
[1759414443528,1.73168716,225.53,225.44,1.73168716]
[1759414444029,66.93305904,225.56,225.44,1.73168716]
[1759414444228,179.29305904,225.56,225.43,3.9897]
[1759414444429,9.13519096,225.57,225.4,62.0736]
[1759414444630,3.9878,225.55,225.46,3.9894]
[1759414444928,59.99483192,225.57,225.46,3.9894]
[1759414445125,59.99483192,225.57,225.46,11.5294]
[1759414445623,3.9882,225.53,225.46,11.5294]
[1759414445928,62.0319,225.56,225.46,7.54]
[1759414446121,3.9887,225.51,225.46,7.54]
[1759414446930,3.9887,225.51,225.43,7.54]
[1759414449730,62.0499,225.49,225.38,7.54]
[1759414450032,174.4699,225.49,225.42,3.91]
[1759414450236,3.9899,225.44,225.42,3.91]
[1759414450436,7.33,225.43,225.42,3.91]
[1759414452433,7.77,225.43,225.42,3.91]
[1759414452627,7.77,225.43,225.34,4.13]
[1759414452826,174.409,225.42,225.34,4.13]
[1759414453034,7.33,225.4,225.34,4.13]
[1759414453239,11.3212,225.36,225.34,4.13]
[1759414453530,62.0731,225.41,225.28,7.54]
[1759414453531,7.33,225.35,225.28,7.54]
[1759414453739,7.33,225.35,225.23,7.54]
[1759414453740,3.992,225.32,225.23,7.54]
[1759414453930,139.2307,225.34,225.23,7.54]
[1759414454327,62.0978,225.32,225.16,5.88882673]